[Event "World Senior chT-65 2019"]
[Site "Rhodes"]
[Date "2019.04.16"]
[Round "1.48"]
[White "Palsson, Bertil"]
[Black "Stokes, Michael"]
[Result "0-1"]
[ECO "A34"]
[WhiteElo "1785"]
[BlackElo "2092"]
[Annotator "NA"]
[PlyCount "86"]
[EventDate "2019.04.16"]
[EventType "team-tourn"]
[EventCountry "GRE"]
[SourceTitle "playchess.com"]
[Source "ChessBase"]
[SourceQuality "1"]
[WhiteTeam "Sweden"]
[BlackTeam "England"]
[WhiteTeamCountry "SWE"]
[BlackTeamCountry "ENG"]
[TimeControl "40/5400+30:1800+30"]

1. c4 {[%emt 0:00:00]} c5 {[%emt 0:00:00]} 2. Nf3 {[%emt 0:00:00]} Nf6 {[%emt 0:00:00]} 3. Nc3 {[%emt 0:00:00]} d5 {[%emt 0:00:00]} 4. cxd5 {[%emt 0:00:15]} Nxd5 {[%emt 0:00:00]} 5. g3 {[%emt 0:00:29]} Nc6 {[%emt 0:00:35]} 6. Bg2 {[%emt 0:01:10]} Nc7 {[%emt 0:00:09]} 7. O-O {[%emt 0:00:52]} e5 {[%emt 0:00:14]} 8. d3 {[%emt 0:00:22]} Be7 {[%emt 0:02:11]} 9. b3 {[%emt 0:00:45]} Be6 {[%emt 0:02:17]} 10. Bb2 {[%emt 0:01:32]} f6 {[%emt 0:00:26]} 11. Rc1 {[%emt 0:01:05]} O-O {[%emt 0:00:36]} 12. Nd2 {[%emt 0:05:23]} Nd5 {[%emt 0:03:42]} 13. Nce4 {[%emt 0:05:53]} b6 {[%emt 0:00:45]} 14. Nc4 {[%emt 0:02:00]} Qd7 {[%emt 0:07:20]} 15. Qd2 {[%emt 0:05:33]} Rad8 {[%emt 0:08:57]} 16. Rfd1 {[%emt 0:05:34]} Qe8 {[%emt 0:04:27]} 17. Nc3 {[%emt 0:09:33]} Ncb4 {[%emt 0:06:13]} 18. Ba1 {[%emt 0:00:58]} Nxc3 {[%emt 0:06:12]} 19. Bxc3 {[%emt 0:00:55]} Nd5 {[%emt 0:00:20]} 20. Bb2 {[%emt 0:01:03]} Qh5 {[%emt 0:02:41]} 21. Bf3 {[%emt 0:03:13]} Qf7 {[%emt 0:00:38]} 22. Ne3 {[%emt 0:01:40]} Bd6 {[%emt 0:04:16]} 23. Nxd5 {[%emt 0:06:00]} Bxd5 {[%emt 0:00:00]} 24. Bxd5 {[%emt 0:00:03]} Qxd5 {[%emt 0:00:12]} 25. Qc3 {[%emt 0:00:30]} b5 {[%emt 0:04:38]} 26. Qa5 {[%emt 0:01:17]} Qb7 {[%emt 0:02:10]} 27. Qd2 {[%emt 0:05:17]} f5 {[%emt 0:04:16]} 28. Ba3 {[%emt 0:04:01]} Qe7 {[%emt 0:03:16]} 29. Qe3 {[%emt 0:02:15]} b4 {[%emt 0:01:54]} 30. Bb2 {[%emt 0:00:24]} Rde8 {[%emt 0:01:35]} 31. Rc4 {[%emt 0:01:02]} g5 {[%emt 0:04:28]} 32. Qf3 {[%emt 0:03:22]} Rf6 {[%emt 0:04:58]} 33. h4 {[%emt 0:08:44]} Qf7 {[%emt 0:03:16]} 34. hxg5 {[%emt 0:02:20]} Rg6 {[%emt 0:02:53]} 35. Qh5 {[%emt 0:02:38]} f4 {[%emt 0:04:35]} 36. g4 {[%emt 0:04:56]} Qe7 {[%emt 0:03:50]} 37. f3 {[%emt 0:02:27]} Rxg5 {[%emt 0:00:11]} 38. Qh4 {[%emt 0:01:03]} h5 {[%emt 0:01:11]} 39. Kf2 {[%emt 0:00:00]} hxg4 {[%emt 0:00:00]} 40. fxg4 {[%emt 0:00:00]} Qg7 {[%emt 0:00:00]} 41. Rg1 {[%emt 0:04:43]} Re6 {[%emt 0:03:09]} 42. Kf3 {[%emt 0:03:28]} Rh6 {[%emt 0:00:50]} 43. Qf2 {[%emt 0:06:29]} e4+ {[%emt 0:02:59]} 0-1

[Event "World Senior chT-65 2019"]
[Site "Rhodes"]
[Date "2019.04.17"]
[Round "2.8"]
[White "Quinn, John M"]
[Black "Just, Joachim"]
[Result "1/2-1/2"]
[ECO "D10"]
[WhiteElo "2140"]
[BlackElo "1970"]
[Annotator "RC"]
[PlyCount "90"]
[EventDate "2019.04.16"]
[EventType "team-tourn"]
[EventCountry "GRE"]
[SourceTitle "playchess.com"]
[Source "ChessBase"]
[SourceQuality "1"]
[WhiteTeam "England"]
[BlackTeam "Germany"]
[WhiteTeamCountry "ENG"]
[BlackTeamCountry "GER"]
[TimeControl "40/5400+30:1800+30"]

1. d4 {[%emt 0:00:00]} d5 {[%emt 0:00:00]} 2. c4 {[%emt 0:00:00]} c6 {[%emt 0:00:04]} 3. Nf3 {[%emt 0:00:00]} Nf6 {[%emt 0:00:13]} 4. e3 {[%emt 0:00:00]} g6 {[%emt 0:00:27]} 5. Nc3 {[%emt 0:00:00]} Bg4 {[%emt 0:00:49]} 6. cxd5 {[%emt 0:05:15]} Nxd5 {[%emt 0:02:18]} 7. Be2 {[%emt 0:05:10]} Bg7 {[%emt 0:02:01]} 8. O-O {[%emt 0:03:41]} e6 {[%emt 0:03:17]} 9. e4 {[%emt 0:02:12]} Nb6 {[%emt 0:02:13]} 10. Bg5 {[%emt 0:12:18]} Qd7 {[%emt 0:02:41]} 11. e5 {[%emt 0:02:21]} h6 {[%emt 0:03:44]} 12. Be3 {[%emt 0:03:11]} O-O {[%emt 0:07:05]} 13. Ne4 {[%emt 0:04:11]} Bxf3 {[%emt 0:02:40]} 14. Bxf3 {[%emt 0:01:56]} Qe7 {[%emt 0:02:24]} 15. Qb3 {[%emt 0:10:00]} N8d7 {[%emt 0:05:39]} 16. Rac1 {[%emt 0:06:23]} Rab8 {[%emt 0:02:52]} 17. Bd2 {[%emt 0:04:21]} Nd5 {[%emt 0:02:56]} 18. Rfe1 {[%emt 0:03:33]} Rfd8 {[%emt 0:02:33]} 19. a4 {[%emt 0:01:58]} N7b6 {[%emt 0:03:42]} 20. a5 {[%emt 0:01:33]} Na8 {[%emt 0:02:17]} 21. Nc5 {[%emt 0:13:56]} Qc7 {[%emt 0:04:02]} 22. Qd3 {[%emt 0:01:39]} Qe7 {[%emt 0:02:36]} 23. Qe4 {[%emt 0:01:20]} Nac7 {[%emt 0:01:25]} 24. Rc2 {[%emt 0:00:53]} a6 {[%emt 0:03:53]} 25. Be2 {[%emt 0:01:42]} Nb5 {[%emt 0:01:25]} 26. Bc4 {[%emt 0:01:06]} Ndc7 {[%emt 0:06:35]} 27. Bc3 {[%emt 0:02:59]} Nd5 {[%emt 0:02:28]} 28. f4 {[%emt 0:01:51]} Qc7 {[%emt 0:02:42]} 29. Bxb5 {[%emt 0:01:11]} cxb5 {[%emt 0:01:22]} 30. Bd2 {[%emt 0:00:43]} Qe7 {[%emt 0:01:34]} 31. Rec1 {[%emt 0:00:51]} Bf8 {[%emt 0:02:21]} 32. Qf3 {[%emt 0:02:28]} Qh4 {[%emt 0:02:17]} 33. Ne4 {[%emt 0:01:29]} Be7 {[%emt 0:00:52]} 34. g3 {[%emt 0:01:08]} Qh3 {[%emt 0:04:34]} 35. Nf2 {[%emt 0:03:05]} Qh5 {[%emt 0:01:21]} 36. g4 {[%emt 0:00:17]} Qh4 {[%emt 0:00:11]} 37. Nd3 {[%emt 0:01:44]} h5 {[%emt 0:00:50]} 38. h3 {[%emt 0:00:51]} hxg4 {[%emt 0:01:07]} 39. hxg4 {[%emt 0:00:18]} Qh7 {[%emt 0:02:05]} 40. Kg2 {[%emt 0:00:00]} Qg7 {[%emt 0:00:00]} 41. g5 {[%emt 0:05:03]} Qf8 {[%emt 0:04:01]} 42. Nf2 {[%emt 0:03:02]} Rbc8 {[%emt 0:00:59]} 43. Ne4 {[%emt 0:01:40]} Rxc2 {[%emt 0:06:07]} 44. Rxc2 {[%emt 0:00:03]} Bb4 {[%emt 0:02:00]} 45. Kh1 {[%emt 0:09:47]} Kg7 {[%emt 0:02:02]} 1/2-1/2

[Event "World Senior chT-65 2019"]
[Site "Rhodes"]
[Date "2019.04.17"]
[Round "2.15"]
[White "Titz, Heimo"]
[Black "Hurme, Harri"]
[Result "0-1"]
[ECO "B37"]
[WhiteElo "2096"]
[BlackElo "2148"]
[Annotator "NA RC"]
[PlyCount "50"]
[EventDate "2019.04.16"]
[EventType "team-tourn"]
[EventCountry "GRE"]
[SourceTitle "playchess.com"]
[Source "ChessBase"]
[SourceQuality "1"]
[WhiteTeam "Austria"]
[BlackTeam "Finland"]
[WhiteTeamCountry "AUT"]
[BlackTeamCountry "FIN"]
[TimeControl "40/5400+30:1800+30"]

1. c4 {[%emt 0:00:37]} g6 {[%emt 0:01:00]} 2. Nc3 {[%emt 0:01:07]} c5 {[%emt 0:01:52]} 3. Nf3 {[%emt 0:00:18]} Bg7 {[%emt 0:03:01]} 4. d4 {[%emt 0:00:32]} cxd4 {[%emt 0:00:00]} 5. Nxd4 {[%emt 0:04:12]} Nc6 {[%emt 0:04:09]} 6. Nc2 {[%emt 0:08:58]} d6 7. e4 {[%emt 0:07:58]} Bxc3+ {[%emt 0:00:14]} 8. bxc3 {[%emt 0:00:00]} Nf6 {[%emt 0:00:53]} 9. f3 {[%emt 0:00:00]} O-O 10. Be2 {[%emt 0:08:29]} Be6 {[%emt 0:22:28]} 11. Ne3 {[%emt 0:09:15]} Rc8 {[%emt 0:13:58]} 12. Rb1 {[%emt 0:05:18]} b6 {[%emt 0:20:14]} 13. Bd2 {[%emt 0:33:16]} Na5 {[%emt 0:00:00]} 14. Rb4 {[%emt 0:03:20]} Nd7 15. f4 {[%emt 0:00:57]} f6 16. O-O {[%emt 0:02:01]} Nc5 {[%emt 0:03:11]} 17. Qc2 {[%emt 0:04:43]} Kh8 18. f5 {[%emt 0:02:24]} Bf7 19. fxg6 {[%emt 0:04:01]} hxg6 {[%emt 0:01:06]} 20. Bg4 {[%emt 0:00:00]} e6 {[%emt 0:00:00]} 21. Be2 {[%emt 0:02:58]} Nc6 {[%emt 0:00:46]} 22. Rbb1 {[%emt 0:00:00]} Ne5 {[%emt 0:01:11]} 23. Ng4 {[%emt 0:00:54]} Nxg4 {[%emt 0:00:00]} 24. Bxg4 {[%emt 0:00:12]} Kg7 {[%emt 0:02:00]} 25. Be3 {[%emt 0:00:17]} Nd7 {[%emt 0:00:00]} 0-1

[Event "World Senior chT-65 2019"]
[Site "Rhodes"]
[Date "2019.04.17"]
[Round "2.23"]
[White "Shushpanov, Vladimir"]
[Black "Johnsen, Oystein"]
[Result "0-1"]
[ECO "D30"]
[WhiteElo "2180"]
[BlackElo "1986"]
[Annotator "NA RC"]
[PlyCount "93"]
[EventDate "2019.04.16"]
[EventType "team-tourn"]
[EventCountry "GRE"]
[SourceTitle "playchess.com"]
[Source "ChessBase"]
[SourceQuality "1"]
[WhiteTeam "Russia"]
[BlackTeam "Norway"]
[WhiteTeamCountry "RUS"]
[BlackTeamCountry "NOR"]
[TimeControl "40/5400+30:1800+30"]

1. d4 {[%emt 0:00:00]} d5 {[%emt 0:00:00]} 2. Nf3 {[%emt 0:00:00]} Nf6 {[%emt 0:00:00]} 3. c4 {[%emt 0:00:00]} c6 {[%emt 0:00:00]} 4. Qc2 {[%emt 0:00:14]} e6 {[%emt 0:01:00]} 5. Bg5 {[%emt 0:00:29]} Be7 {[%emt 0:01:07]} 6. e3 {[%emt 0:00:17]} h6 {[%emt 0:00:49]} 7. Bh4 {[%emt 0:00:51]} Ne4 {[%emt 0:06:54]} 8. Bxe7 {[%emt 0:00:30]} Qxe7 {[%emt 0:00:01]} 9. Bd3 {[%emt 0:01:01]} Nf6 {[%emt 0:01:46]} 10. Nc3 {[%emt 0:01:18]} O-O {[%emt 0:02:00]} 11. O-O {[%emt 0:00:13]} Nbd7 {[%emt 0:05:31]} 12. Rfd1 {[%emt 0:04:27]} Rd8 {[%emt 0:09:19]} 13. a3 {[%emt 0:02:04]} a5 {[%emt 0:09:57]} 14. h3 {[%emt 0:00:51]} e5 {[%emt 0:05:20]} 15. cxd5 {[%emt 0:02:50]} cxd5 {[%emt 0:03:48]} 16. dxe5 {[%emt 0:05:56]} Nxe5 {[%emt 0:00:28]} 17. Be2 {[%emt 0:01:16]} Nxf3+ {[%emt 0:10:13]} 18. Bxf3 {[%emt 0:00:21]} Be6 {[%emt 0:00:03]} 19. Rd4 {[%emt 0:00:43]} Rd7 {[%emt 0:02:16]} 20. Rad1 {[%emt 0:01:22]} Rad8 {[%emt 0:02:17]} 21. Qa4 {[%emt 0:01:54]} b6 {[%emt 0:09:19]} 22. R1d3 {[%emt 0:03:22]} Bf5 {[%emt 0:05:19]} 23. Rd2 {[%emt 0:01:15]} Be6 {[%emt 0:07:50]} 24. Qb5 {[%emt 0:04:32]} Qc5 {[%emt 0:01:11]} 25. Qb3 {[%emt 0:03:13]} Kf8 {[%emt 0:07:08]} 26. Na4 {[%emt 0:01:15]} Qc1+ {[%emt 0:00:30]} 27. Rd1 {[%emt 0:00:16]} Qc6 {[%emt 0:00:22]} 28. Qxb6 {[%emt 0:00:37]} Qxb6 {[%emt 0:04:44]} 29. Nxb6 {[%emt 0:00:12]} Rb7 {[%emt 0:00:05]} 30. Nxd5 {[%emt 0:06:01]} Nxd5 {[%emt 0:04:07]} 31. Bxd5 {[%emt 0:00:06]} Rxb2 {[%emt 0:00:07]} 32. Bxe6 {[%emt 0:01:40]} Rxd4 {[%emt 0:00:01]} 33. Rxd4 {[%emt 0:00:27]} fxe6 {[%emt 0:00:03]} 34. Rd8+ {[%emt 0:01:46]} Ke7 {[%emt 0:00:03]} 35. Ra8 {[%emt 0:00:11]} Rb1+ {[%emt 0:00:07]} 36. Kh2 {[%emt 0:00:07]} Rb5 {[%emt 0:00:26]} 37. Ra6 {[%emt 0:00:39]} h5 {[%emt 0:00:42]} 38. h4 {[%emt 0:01:04]} Kf6 {[%emt 0:00:21]} 39. Kg3 {[%emt 0:00:49]} g6 {[%emt 0:01:42]} 40. a4 {[%emt 0:00:00]} Rc5 {[%emt 0:00:00]} 41. f4 {[%emt 0:04:04]} Rd5 {[%emt 0:09:18]} 42. Kf3 {[%emt 0:00:25]} Rc5 {[%emt 0:00:19]} 43. g4 {[%emt 0:00:52]} Ke7 {[%emt 0:07:03]} 44. g5 {[%emt 0:03:50]} Kf7 {[%emt 0:08:40]} 45. Ra7+ {[%emt 0:00:53]} Kf8 {[%emt 0:00:17]} 46. Ke4 {[%emt 0:01:39]} Rd5 {[%emt 0:01:39]} 47. Rc7 {[%emt 0:03:14]} 0-1

[Event "World Senior chT-65 2019"]
[Site "Rhodes"]
[Date "2019.04.17"]
[Round "2.31"]
[White "Grahn, Lars"]
[Black "Staechelin, Ruedi"]
[Result "1/2-1/2"]
[ECO "D12"]
[WhiteElo "1985"]
[BlackElo "2053"]
[Annotator "NA RC"]
[PlyCount "116"]
[EventDate "2019.04.16"]
[EventType "team-tourn"]
[EventCountry "GRE"]
[SourceTitle "playchess.com"]
[Source "ChessBase"]
[SourceQuality "1"]
[WhiteTeam "Sweden"]
[BlackTeam "Switzerland"]
[WhiteTeamCountry "SWE"]
[BlackTeamCountry "SUI"]
[TimeControl "40/5400+30:1800+30"]

1. d4 {[%emt 0:00:00]} d5 {[%emt 0:00:00]} 2. Nf3 {[%emt 0:00:00]} Nf6 {[%emt 0:00:59]} 3. e3 {[%emt 0:00:00]} c6 {[%emt 0:00:56]} 4. c4 {[%emt 0:00:10]} Bf5 {[%emt 0:00:53]} 5. Nc3 {[%emt 0:00:18]} e6 {[%emt 0:00:13]} 6. Nh4 {[%emt 0:00:32]} Bg4 {[%emt 0:00:44]} 7. Qb3 {[%emt 0:05:16]} b6 {[%emt 0:02:32] D12: Slav Defence: 3 Nf3 Nf6 4 e3 Bf5} (7... Qc7 8. Bd2 Bh5 9. Rc1 dxc4 10. Bxc4 Be7 11. h3 Qb6 12. g3 Nbd7 13. O-O Nd5 14. Ng2 Bg6 15. f3 O-O {½-½ (48) Aronian,L (2781)-Vallejo Pons,F (2705) Linares 2010}) 8. Be2 $146 {[%emt 0:03:34]} ({You set blue moves yourself with the critical opening position annotation.:} 8. h3 Bh5 9. g4 Bg6 10. g5 Ng8 11. Nxg6 hxg6 12. cxd5 exd5 13. e4 Rh4 14. Be3 Bd6 15. exd5 {1-0 (41) Laznicka,V (2617)-Starostits,I (2482) Benasque 2009}) 8... Bxe2 {[%emt 0:00:53]} 9. Nxe2 {[%emt 0:00:25]} Nbd7 {[%emt 0:03:20]} 10. Nf3 {[%emt 0:02:25]} Bd6 {[%emt 0:04:02]} 11. Ng3 {[%emt 0:03:08]} O-O {[%emt 0:00:58]} 12. O-O {[%emt 0:00:26]} Rc8 {[%emt 0:03:28]} 13. cxd5 {[%emt 0:10:26]} cxd5 {[%emt 0:01:56]} 14. Bd2 {[%emt 0:02:47]} Rc4 {[%emt 0:06:49]} 15. Qd3 {[%emt 0:06:41]} Qc7 {[%emt 0:05:11]} 16. Rac1 {[%emt 0:04:55]} Rc8 {[%emt 0:00:54]} 17. b3 {[%emt 0:10:13]} Rxc1 {[%emt 0:12:15]} 18. Rxc1 {[%emt 0:00:09]} Qb7 {[%emt 0:00:22]} 19. Rxc8+ {[%emt 0:04:20]} Qxc8 {[%emt 0:00:04]} 20. Qc3 {[%emt 0:01:09]} Qxc3 {[%emt 0:01:43]} 21. Bxc3 {[%emt 0:00:03]} Ng4 {[%emt 0:02:51]} 22. Ne2 {[%emt 0:05:08]} h6 {[%emt 0:04:29]} 23. Nc1 {[%emt 0:03:27]} Nb8 {[%emt 0:01:16]} 24. Nd3 {[%emt 0:02:55]} Nc6 {[%emt 0:00:16]} 25. h3 {[%emt 0:02:25]} Nf6 {[%emt 0:00:11]} 26. Kf1 {[%emt 0:04:15]} Ne4 {[%emt 0:03:12]} 27. Be1 {[%emt 0:00:55]} f6 {[%emt 0:03:19]} 28. Ke2 {[%emt 0:04:18]} Kf7 {[%emt 0:00:34]} 29. Ng1 {[%emt 0:06:46]} f5 {[%emt 0:04:32]} 30. f4 {[%emt 0:04:49]} g5 {[%emt 0:11:01]} 31. Nf3 {[%emt 0:00:30]} Kg6 {[%emt 0:01:51]} 32. Nfe5+ {[%emt 0:03:54]} Bxe5 {[%emt 0:01:31]} 33. Nxe5+ {[%emt 0:01:39]} Nxe5 {[%emt 0:00:10]} 34. dxe5 {[%emt 0:01:46]} g4 {[%emt 0:06:35]} 35. Kf1 {[%emt 0:03:06]} h5 {[%emt 0:00:39]} 36. h4 {[%emt 0:00:55]} Nc5 {[%emt 0:05:22]} 37. Ke2 {[%emt 0:00:10]} Kf7 {[%emt 0:01:24]} 38. Kd2 {[%emt 0:01:56]} Ke8 {[%emt 0:01:09]} 39. Kc2 {[%emt 0:00:33]} Kd7 {[%emt 0:02:38]} 40. Bb4 {[%emt 0:00:00]} Nb7 {[%emt 0:00:00]} 41. Be1 {[%emt 0:04:44]} Kc6 {[%emt 0:03:59]} 42. Kd3 {[%emt 0:03:48]} a5 {[%emt 0:02:50]} 43. Bd2 {[%emt 0:06:01]} b5 {[%emt 0:00:23]} 44. Kd4 {[%emt 0:03:06]} b4 {[%emt 0:00:35]} 45. Kd3 {[%emt 0:03:58]} Kb5 {[%emt 0:00:13]} 46. Kc2 {[%emt 0:02:00]} a4 {[%emt 0:01:00]} 47. Be1 {[%emt 0:05:16]} Nc5 {[%emt 0:02:23]} 48. Bd2 {[%emt 0:00:41]} axb3+ {[%emt 0:01:46]} 49. axb3 {[%emt 0:00:02]} Na6 {[%emt 0:02:07]} 50. Kd3 {[%emt 0:00:47]} Nb8 {[%emt 0:00:13]} 51. Be1 {[%emt 0:01:10]} Nc6 {[%emt 0:00:12]} 52. Bf2 {[%emt 0:02:11]} Na5 {[%emt 0:04:05]} 53. Kc2 {[%emt 0:00:01]} Nc6 {[%emt 0:00:18]} 54. Kd3 {[%emt 0:00:10]} Nb8 {[%emt 0:07:49]} 55. Kc2 {[%emt 0:01:59]} Nd7 {[%emt 0:00:14]} 56. Kd3 {[%emt 0:00:34]} Nc5+ $11 {[%emt 0:00:12]} 57. Kc2 {[%emt 0:00:06]} Ne4 {[%emt 0:00:10]} 58. Be1 {[%emt 0:00:08]} Nc5 {[%emt 0:04:10]} 1/2-1/2

[Event "World Senior chT-65 2019"]
[Site "Rhodes"]
[Date "2019.04.17"]
[Round "2.32"]
[White "Illi, Hans-Joerg"]
[Black "Svensson, Soren"]
[Result "1-0"]
[ECO "D02"]
[WhiteElo "2002"]
[BlackElo "1964"]
[Annotator "NA RC"]
[PlyCount "61"]
[EventDate "2019.04.16"]
[EventType "team-tourn"]
[EventCountry "GRE"]
[SourceTitle "playchess.com"]
[Source "ChessBase"]
[SourceQuality "1"]
[WhiteTeam "Switzerland"]
[BlackTeam "Sweden"]
[WhiteTeamCountry "SUI"]
[BlackTeamCountry "SWE"]
[TimeControl "40/5400+30:1800+30"]

1. d4 {[%emt 0:00:00]} d5 {[%emt 0:00:00]} 2. Nf3 {[%emt 0:01:02]} e6 {[%emt 0:00:22]} 3. c3 {[%emt 0:00:33]} Nf6 {[%emt 0:00:51]} 4. Bg5 {[%emt 0:00:26]} Be7 {[%emt 0:02:14]} 5. Nbd2 {[%emt 0:00:15]} h6 {[%emt 0:01:00]} 6. Bh4 {[%emt 0:00:45]} O-O {[%emt 0:00:20]} 7. Ne5 {[%emt 0:03:46]} c5 {[%emt 0:06:02]} 8. e3 {[%emt 0:01:05]} Nbd7 {[%emt 0:03:53]} 9. f4 {[%emt 0:02:40]} Nxe5 {[%emt 0:04:59]} 10. fxe5 {[%emt 0:05:26]} Nd7 {[%emt 0:00:57]} 11. Bxe7 {[%emt 0:11:42]} Qxe7 {[%emt 0:00:11]} 12. Bd3 {[%emt 0:00:46]} b6 {[%emt 0:08:28]} 13. O-O {[%emt 0:01:02]} Bb7 {[%emt 0:05:35]} 14. Bb5 {[%emt 0:07:05]} a6 {[%emt 0:04:08]} 15. Bxd7 {[%emt 0:00:43]} Qxd7 {[%emt 0:00:09]} 16. Qg4 {[%emt 0:01:00]} Qe7 {[%emt 0:06:06]} 17. Rf4 {[%emt 0:14:03]} a5 {[%emt 0:06:24]} 18. Raf1 {[%emt 0:11:58]} Ba6 {[%emt 0:01:49]} 19. R1f2 {[%emt 0:00:21]} Bd3 {[%emt 0:01:46]} 20. h4 {[%emt 0:03:10]} b5 {[%emt 0:09:07]} 21. e4 {[%emt 0:05:47]} dxe4 {[%emt 0:06:37]} 22. Nxe4 {[%emt 0:00:18]} Bxe4 {[%emt 0:00:35]} 23. Rxe4 {[%emt 0:00:18]} Rad8 {[%emt 0:03:14]} 24. a3 {[%emt 0:04:40]} cxd4 {[%emt 0:06:43]} 25. cxd4 {[%emt 0:01:37]} Rc8 {[%emt 0:00:51]} 26. Ref4 {[%emt 0:03:09]} Rc1+ {[%emt 0:03:06]} 27. Kh2 {[%emt 0:00:32]} Qc7 {[%emt 0:01:19]} 28. Rf6 {[%emt 0:02:08]} Rc2 {[%emt 0:02:46]} 29. R2f3 {[%emt 0:04:39]} Kh8 {[%emt 0:06:13]} 30. Rg3 {[%emt 0:05:27]} Rg8 {[%emt 0:00:57]} 31. Rxh6+ {[%emt 0:00:31]} 1-0

[Event "World Senior chT-65 2019"]
[Site "Rhodes"]
[Date "2019.04.17"]
[Round "2.34"]
[White "Ranki, Martti"]
[Black "Holst, Per"]
[Result "0-1"]
[ECO "E50"]
[WhiteElo "1940"]
[BlackElo "2150"]
[Annotator "NA RC"]
[PlyCount "52"]
[EventDate "2019.04.16"]
[EventType "team-tourn"]
[EventCountry "GRE"]
[SourceTitle "playchess.com"]
[Source "ChessBase"]
[SourceQuality "1"]
[WhiteTeam "Finland"]
[BlackTeam "Denmark"]
[WhiteTeamCountry "FIN"]
[BlackTeamCountry "DEN"]
[TimeControl "40/5400+30:1800+30"]

1. d4 {[%emt 0:00:00]} e6 {[%emt 0:00:00]} 2. c4 {[%emt 0:00:00]} Nf6 {[%emt 0:00:00]} 3. Nc3 {[%emt 0:00:37]} Bb4 {[%emt 0:00:00]} 4. Qc2 {[%emt 0:01:13]} c5 {[%emt 0:01:27]} 5. e3 {[%emt 0:02:16]} O-O {[%emt 0:02:23]} 6. Nf3 {[%emt 0:00:56]} b6 {[%emt 0:01:34]} 7. Be2 {[%emt 0:01:10]} Bb7 {[%emt 0:00:38]} 8. O-O {[%emt 0:00:19]} cxd4 {[%emt 0:03:29]} 9. exd4 {[%emt 0:03:43]} d5 {[%emt 0:01:11]} 10. b3 {[%emt 0:04:56]} Nc6 {[%emt 0:02:50]} 11. Rd1 {[%emt 0:03:03]} Rc8 {[%emt 0:03:05]} 12. Bg5 {[%emt 0:03:45]} Be7 {[%emt 0:01:18]} 13. Qb2 {[%emt 0:07:12]} Ne4 {[%emt 0:17:06]} 14. Be3 {[%emt 0:11:04]} Nxc3 {[%emt 0:07:32]} 15. Qxc3 {[%emt 0:00:22]} Bb4 {[%emt 0:03:34]} 16. Qb2 {[%emt 0:04:23]} Qe7 {[%emt 0:02:05]} 17. a3 {[%emt 0:01:35]} Bd6 {[%emt 0:00:10]} 18. h3 {[%emt 0:03:44]} dxc4 {[%emt 0:02:44]} 19. bxc4 {[%emt 0:00:43]} Na5 {[%emt 0:01:45]} 20. Nd2 {[%emt 0:05:29]} Qf6 {[%emt 0:05:43]} 21. Rac1 {[%emt 0:05:26]} Qg6 {[%emt 0:04:46]} 22. Bf1 {[%emt 0:00:39]} f5 {[%emt 0:01:15]} 23. c5 {[%emt 0:03:54]} Bb8 {[%emt 0:06:17]} 24. Nc4 {[%emt 0:02:59]} Nxc4 {[%emt 0:02:14]} 25. Rxc4 {[%emt 0:00:16]} f4 {[%emt 0:01:00]} 26. Bc1 {[%emt 0:02:10]} Bxg2 {[%emt 0:02:43]} 0-1

[Event "World Senior chT-65 2019"]
[Site "Rhodes"]
[Date "2019.04.17"]
[Round "2.35"]
[White "Hvenekilde, Jorgen"]
[Black "Alkkiomaki, Jyrki"]
[Result "1/2-1/2"]
[ECO "D02"]
[WhiteElo "2046"]
[BlackElo "1908"]
[Annotator "NA RC"]
[PlyCount "43"]
[EventDate "2019.04.16"]
[EventType "team-tourn"]
[EventCountry "GRE"]
[SourceTitle "playchess.com"]
[Source "ChessBase"]
[SourceQuality "1"]
[WhiteTeam "Denmark"]
[BlackTeam "Finland"]
[WhiteTeamCountry "DEN"]
[BlackTeamCountry "FIN"]
[TimeControl "40/5400+30:1800+30"]

1. d4 {[%emt 0:00:00]} d5 {[%emt 0:00:00]} 2. Nf3 {[%emt 0:00:00]} Nf6 {[%emt 0:00:00]} 3. Bf4 {[%emt 0:00:30]} e6 {[%emt 0:00:35]} 4. e3 {[%emt 0:00:13]} c5 {[%emt 0:01:24]} 5. c3 {[%emt 0:00:34]} Nc6 {[%emt 0:00:16]} 6. Bd3 {[%emt 0:01:05]} Be7 {[%emt 0:05:24]} 7. Nbd2 {[%emt 0:01:40]} Bd7 {[%emt 0:05:15]} 8. h3 {[%emt 0:01:59]} Qb6 {[%emt 0:03:28]} 9. Rb1 {[%emt 0:03:56]} c4 {[%emt 0:02:11]} 10. Bc2 {[%emt 0:01:09]} Qa5 {[%emt 0:02:16]} 11. a3 {[%emt 0:11:46]} b5 {[%emt 0:02:06]} 12. Bh2 {[%emt 0:05:05]} Qd8 {[%emt 0:03:10]} 13. O-O {[%emt 0:08:57]} O-O {[%emt 0:00:24]} 14. Ne5 {[%emt 0:07:55]} Nxe5 {[%emt 0:03:02]} 15. dxe5 {[%emt 0:00:45]} Ne8 {[%emt 0:00:13]} 16. Nf3 {[%emt 0:04:29]} g6 {[%emt 0:01:54]} 17. Nd4 {[%emt 0:03:20]} Ng7 {[%emt 0:08:34]} 18. g4 {[%emt 0:02:40]} f5 {[%emt 0:07:12]} 19. f4 {[%emt 0:03:41]} Bc5 {[%emt 0:09:53]} 20. Bg3 {[%emt 0:07:18]} a5 {[%emt 0:03:53]} 21. Be1 {[%emt 0:02:58]} a4 {[%emt 0:06:05]} 22. Qd2 {[%emt 0:08:01]} 1/2-1/2